{"text_format":"3","workbook":"xlsx","n_sheets":2,"sheets":["Начало","Фактура за услуги"],"not_rendered":{"images":1,"defined_names":1},"read":"whole","date_system":"1900"}

{"sheet":"Начало","index":0,"n_rows":8,"n_cols":2,"rows_kept":8}
[null,"ЗА ТОЗИ ШАБЛОН"]
[null,"Използвайте този шаблон, за да създадете фактура за услуги."]
[null,"Попълнете номер на фактура, дата, име на фирма, адрес, мотото и сметка в подробности."]
[null,"Въведете информация в таблици."]
[null,"Общо е автоматично изчислява за вас."]
[null,"Забележка: "]
[null,"Допълнителни инструкции са предоставени в колона А в работен лист ФАКТУРА ЗА УСЛУГИ.  Този текст е скрит нарочно. За да премахнете текста, изберете колона А, след което изберете DELETE. За да покажете текст, изберете колона A, след което променете цвета на шрифта."]
[null,"За да научите повече за таблиците, натиснете SHIFT и след това F10 в таблица, изберете опцията ТАБЛИЦА и след това изберете АЛТЕРНАТИВЕН ТЕКСТ."]

{"sheet":"Фактура за услуги","index":1,"n_rows":43,"n_cols":5,"rows_kept":43,"merged":[[0,1,0,2],[0,3,0,4],[1,1,1,4],[2,1,2,3],[3,1,3,3],[4,1,4,2],[5,1,5,2],[6,1,6,2],[7,1,7,2],[41,1,41,2],[41,3,41,4],[42,1,42,4]]}
["Създавайте фактура за услуги в този работен лист. Въведете емблема на фирмата в клетката вдясно и заглавие на този работен лист в клетка D1. Полезни инструкции как да използвате този работен лист, можете да намерите в клетките в тази колона. Следващата инструкция е в клетка A3.","Контейнерът за емблемата е в тази клетка.",null,"ФАКТУРА"]
[]
["Въведете име на фирма в клетката вдясно.","Името на вашата фирма"]
["Въведете мотото на фирмата в клетката вдясно.","Мотото на вашата фирма"]
["Въведете адреса на фирмата, улица и номер, в клетката вдясно и номера на фактурата в клетка E5.","Улица и номер",null,"ФАКТУРА №","№"]
["Въведете град, област и пощенски код в клетката вдясно и дата в клетка E6.","Град, област, пощенски код",null,"ДАТА ",{"$f":"TODAY()","v":"2019-04-19"}]
["Въведете телефонен номер и факс в клетката отдясно и ИД в клетка E7.","Телефон Факс",null,"ИД НА КЛИЕНТ ","ИД"]
["Въведете имейл адрес в клетката вдясно.","Имейл"]
["За етикетиране е в клетката вдясно. Въведете сметка към подробности като например име, име на фирма, адрес и телефонен номер в клетките от C9 до C13. Следващата инструкция е в клетка A14.","ДО","Име"]
[null,null,"Име на фирма"]
[null,null,"Улица и номер"]
[null,null,"Град, област, пощенски код"]
[null,null,"Телефон"]
["Въведете информация в таблица \"Подробности за продажби\", като започнете от клетката вдясно. Следващата инструкция е в клетка A17.","ПРОДАВАЧ","ДЛЪЖНОСТ","УСЛОВИЯ ЗА ПЛАЩАНЕ","КРАЕН СРОК"]
[{"$nulls":3},"Плащане при получаване"]
[]
["Въведете информация в таблица \"Фактура\", като започнете от клетката вдясно. Междинна сума и общо се изчисляват автоматично. Следващата инструкция е в клетка A42.","КОЛИЧЕСТВО","ОПИСАНИЕ","ЕДИНИЧНА ЦЕНА","РЕД ОБЩО"]
[{"$nulls":4},{"$f":"IF(SUM(B18)>0,SUM(B18*'Фактура за услуги'!$D18),\"\")","v":""}]
[{"$nulls":4},{"$f":"IF(SUM(B19)>0,SUM(B19*'Фактура за услуги'!$D19),\"\")","v":""}]
[{"$nulls":4},{"$f":"IF(SUM(B20)>0,SUM(B20*'Фактура за услуги'!$D20),\"\")","v":""}]
[{"$nulls":4},{"$f":"IF(SUM(B21)>0,SUM(B21*'Фактура за услуги'!$D21),\"\")","v":""}]
[{"$nulls":4},{"$f":"IF(SUM(B22)>0,SUM(B22*'Фактура за услуги'!$D22),\"\")","v":""}]
[{"$nulls":4},{"$f":"IF(SUM(B23)>0,SUM(B23*'Фактура за услуги'!$D23),\"\")","v":""}]
[{"$nulls":4},{"$f":"IF(SUM(B24)>0,SUM(B24*'Фактура за услуги'!$D24),\"\")","v":""}]
[{"$nulls":4},{"$f":"IF(SUM(B25)>0,SUM(B25*'Фактура за услуги'!$D25),\"\")","v":""}]
[{"$nulls":4},{"$f":"IF(SUM(B26)>0,SUM(B26*'Фактура за услуги'!$D26),\"\")","v":""}]
[{"$nulls":4},{"$f":"IF(SUM(B27)>0,SUM(B27*'Фактура за услуги'!$D27),\"\")","v":""}]
[{"$nulls":4},{"$f":"IF(SUM(B28)>0,SUM(B28*'Фактура за услуги'!$D28),\"\")","v":""}]
[{"$nulls":4},{"$f":"IF(SUM(B29)>0,SUM(B29*'Фактура за услуги'!$D29),\"\")","v":""}]
[{"$nulls":4},{"$f":"IF(SUM(B30)>0,SUM(B30*'Фактура за услуги'!$D30),\"\")","v":""}]
[{"$nulls":4},{"$f":"IF(SUM(B31)>0,SUM(B31*'Фактура за услуги'!$D31),\"\")","v":""}]
[{"$nulls":4},{"$f":"IF(SUM(B32)>0,SUM(B32*'Фактура за услуги'!$D32),\"\")","v":""}]
[{"$nulls":4},{"$f":"IF(SUM(B33)>0,SUM(B33*'Фактура за услуги'!$D33),\"\")","v":""}]
[{"$nulls":4},{"$f":"IF(SUM(B34)>0,SUM(B34*'Фактура за услуги'!$D34),\"\")","v":""}]
[{"$nulls":4},{"$f":"IF(SUM(B35)>0,SUM(B35*'Фактура за услуги'!$D35),\"\")","v":""}]
[{"$nulls":4},{"$f":"IF(SUM(B36)>0,SUM(B36*'Фактура за услуги'!$D36),\"\")","v":""}]
[{"$nulls":4},{"$f":"IF(SUM(B37)>0,SUM(B37*'Фактура за услуги'!$D37),\"\")","v":""}]
[{"$nulls":3},"МЕЖДИННА СУМА",{"$f":"IF(SUM(E18:E37)>0,SUM(E18:E37),\"\")","v":""}]
[{"$nulls":3},"ДАНЪК ВЪРХУ ПРОДАЖБИ"]
[{"$nulls":3},"ОБЩО",{"$f":"IF(SUM(E38)>0,SUM((E38*E39)+E38),\"\")","v":""}]
[]
["Името на фирмата се актуализира автоматично в клетка D42.","Направи всички чекове платими на",null,{"$f":"B3","v":"Името на вашата фирма"}]
["Съобщението „Благодаря“ е в клетката вдясно.","БЛАГОДАРИМ ВИ ЗА ПОРЪЧКАТА!"]